fUSD/lending_fUSD_20251017
["ID","MTS","AMOUNT","RATE_DAILY","PERIOD"]
[391713483,1760741443954,-220.0,0.00024442,2]
[391713484,1760741443971,-220.0,0.00024442,2]
[391713485,1760741443980,-220.0,0.00024442,2]
[391713486,1760741443990,-220.0,0.00024442,2]
[391713487,1760741444000,-220.0,0.00024442,2]
[391713488,1760741444010,-220.0,0.00024442,2]
[391713489,1760741444019,-220.0,0.00024442,2]
[391713490,1760741444028,-220.0,0.00024442,2]
[391713491,1760741444037,-834.49221904,0.00024555,2]
[391713492,1760741444046,-552.94,0.00024658,2]
[391713493,1760741444055,-217.15233878,0.00024658,2]
[391713494,1760741444065,-1789.19,0.00024663,2]
[391713495,1760741444074,-834.49221904,0.00024728,2]
[391713496,1760741444083,-500.0,0.0002477,2]
[391713497,1760741444093,-562.12861949,0.00024808,2]
[391713498,1760741444103,-631.05,0.00024809,2]
[391713499,1760741444113,-1789.19,0.00024937,2]
[391713500,1760741444122,-1007.39,0.00025,2]
[391713501,1760741444131,-834.49221904,0.00025143,2]
[391713502,1760741444141,-225.18697532,0.00025206,2]
[391713503,1760741444151,-1789.19,0.00025211,2]
[391713504,1760741444160,-285.0,0.00025265,2]
[391713505,1760741444170,-834.49221904,0.00025298,2]
[391713506,1760741444183,-1000.0,0.00025318,2]
[391713507,1760741444191,-335.0,0.00025468,2]
[391713508,1760741444201,-1789.19,0.00025485,2]
[391713509,1760741444211,-834.49221904,0.00025499,2]
[391713510,1760741444220,-631.05,0.00025646,2]
[391713511,1760741444230,-426.0,0.00025747,2]
[391713512,1760741444240,-233.51889341,0.00025754,2]
[391713513,1760741444250,-1789.19,0.00025759,2]
[391713514,1760741444259,-658.85658408,0.00025772,4]
[391713515,1760741444268,-834.49221904,0.00025819,2]
[391713516,1760741444277,-1789.19,0.00026033,2]
[391713517,1760741444286,-613.1244,0.0002607,2]
[391713518,1760741444295,-1332.5,0.0002607,2]
[391713519,1760741444305,-834.49221904,0.00026081,2]
[391713520,1760741444314,-793.58921542,0.0002617,2]
[391713521,1760741444323,-6326.614,0.00026285,12]
[391713522,1760741444334,-411.956,0.00026285,12]
[391713523,1760741444343,-242.15909246,0.00026302,2]
[391713524,1760741444351,-1789.19,0.00026307,2]
[391713525,1760741444360,-834.49221904,0.00026499,2]
[391713526,1760741444370,-1789.19,0.00026581,2]
[391713527,1760741444379,-381.21,0.00026676,2]
[391713528,1760741444388,-834.49221904,0.00026702,2]
[391713529,1760741444398,-756.00139289,0.00026736,6]
[391713530,1760741444407,-1490.91563778,0.0002675,2]
[391713531,1760741444416,-2002.1577,0.000268,2]
[391713532,1760741444426,-1000.0,0.000268,2]
[391713533,1760741444435,-259.53348965,0.000268,2]
[391713534,1760741444444,-500.0,0.00026849,2]
[391713535,1760741444454,-500.0,0.00026849,2]
[391713536,1760741444463,-616.75329347,0.00026849,2]
[391713537,1760741444472,-11973.2166998,0.0002685,2]
[391713538,1760741444482,-192816.8511193,0.0002685,2]
[391713539,1760741444491,-251.11897888,0.0002685,2]
[391713540,1760741444500,-1789.19,0.00026855,2]
[391713541,1760741444510,-500.0,0.00026873,2]
[391713542,1760741444519,-162.66,0.0002689,2]
[391713543,1760741444529,-500.0,0.00026899,2]
[391713544,1760741444538,-54671.72144897,0.000269,2]
[391713545,1760741444547,-12179.8472,0.000269,2]
[391713546,1760741444557,-21062.95468112,0.00027,2]
[391713547,1760741444566,-1789.19,0.00027128,2]
[391713548,1760741444576,-500.0,0.00027397,17]
[391713549,1760741444585,-500.0,0.00027397,2]
[391713550,1760741444594,-500.0,0.00027397,17]
[391713551,1760741444603,-1220.415,0.00027397,2]
[391713552,1760741444613,-226.74,0.00027397,2]
[391713553,1760741444622,-552.94,0.00027397,2]
[391713554,1760741444631,-226.40456066,0.00027398,2]
[391713555,1760741444641,-1789.19,0.00027402,7]
[391713556,1760741444650,-1000.0,0.00027421,5]
[391713557,1760741444659,-1000.0,0.00027496,2]
[391713558,1760741444669,-1000.0,0.00027496,2]
[391713559,1760741444678,-1000.0,0.00027496,2]
[391713560,1760741444687,-1000.0,0.00027496,2]
[391713561,1760741444696,-1000.0,0.00027496,2]
[391713562,1760741444706,-172.0,0.00027496,2]
[391713563,1760741444715,-285.83,0.00027545,30]
[391713564,1760741444724,-228.87,0.00027641,2]
[391713565,1760741444734,-1789.19,0.00027676,7]
[391713566,1760741444743,-853.51212245,0.000277,8]
[391713567,1760741444752,-295.0343192,0.000279,2]
[391713568,1760741444761,-1789.19,0.0002795,7]
[391713569,1760741444771,-1500.0,0.00027968,5]
[391713570,1760741444781,-27432.46054498,0.00028,60]
[391713571,1760741444791,-30980.0,0.00028,2]
[391713572,1760741444800,-300.0,0.00028145,34]
[391713573,1760741444810,-1789.19,0.00028224,7]
[391713574,1760741444819,-500.0,0.00028394,5]
[391713575,1760741444829,-1789.28604892,0.00028498,7]
[391713576,1760741444839,-5512.0,0.000286,3]
[391713577,1760741444849,-1490.91563776,0.00028637,2]
[391713578,1760741444859,-951.34909432,0.00028664,10]
[391713579,1760741444868,-500.0,0.00028685,5]
[391713580,1760741444878,-500.0,0.00028685,5]
[391713581,1760741444888,-40000.0,0.000288,10]
[391713582,1760741444899,-1000.0,0.00028802,2]
[391713583,1760741444908,-500.0,0.00028896,5]
[391713584,1760741444918,-500.0,0.00028896,5]
[391713585,1760741444932,-499.99999998,0.0002891,2]
[391713586,1760741444941,-500.0,0.0002891,5]
[391713587,1760741444951,-500.0,0.0002891,5]
[391713588,1760741444960,-666.0,0.00028925,3]
[391713589,1760741444969,-500.0,0.00028926,5]
[391713590,1760741444979,-500.0,0.00028926,5]
[391713591,1760741444989,-180.0,0.0002896,2]
[391713592,1760741445002,-259.53348965,0.00028978,2]
[391713593,1760741445012,-17000.0,0.00029,2]
[391713594,1760741445022,-300.0,0.0002904,2]
[391713595,1760741445031,-483.08,0.00029163,2]
[391713596,1760741445042,-5512.0,0.000292,5]
[391713597,1760741445051,-263.373198,0.0002922,5]
[391713598,1760741445060,-1000.0,0.00029233,5]
[391713599,1760741445070,-197.0,0.00029417,2]
[391713600,1760741445080,-197.0,0.00029417,2]
[391713601,1760741445090,-197.0,0.00029417,2]
[391713602,1760741445099,-197.0,0.00029417,2]
[391713603,1760741445108,-197.0,0.00029417,2]
[391713604,1760741445118,-197.0,0.00029417,2]
[391713605,1760741445127,-197.0,0.00029417,2]
[391713606,1760741445137,-197.0,0.00029417,2]
[391713607,1760741445146,-197.0,0.00029417,2]
[391713608,1760741445155,-197.0,0.00029417,2]
[391713609,1760741445164,-168.0,0.00029417,2]
[391713610,1760741445174,-168.0,0.00029417,2]
[391713611,1760741445183,-168.0,0.00029417,2]
[391713612,1760741445192,-168.0,0.00029417,2]
[391713613,1760741445201,-168.0,0.00029417,2]
[391713614,1760741445210,-168.0,0.00029417,2]
[391713615,1760741445219,-168.0,0.00029417,2]
[391713616,1760741445228,-168.0,0.00029417,2]
[391713617,1760741445237,-299.0,0.00029417,2]
[391713618,1760741445247,-299.0,0.00029417,2]
[391713619,1760741445256,-299.0,0.00029417,2]
[391713620,1760741445266,-299.0,0.00029417,2]
[391713621,1760741445275,-299.0,0.00029417,2]
[391713622,1760741445285,-299.0,0.00029417,2]
[391713623,1760741445294,-299.0,0.00029417,2]
[391713624,1760741445303,-299.0,0.00029417,2]
[391713625,1760741445312,-299.0,0.00029417,2]
[391713626,1760741445321,-299.0,0.00029417,2]
[391713627,1760741445330,-299.0,0.00029417,2]
[391713628,1760741445339,-299.0,0.00029417,2]
[391713629,1760741445349,-215.0,0.00029417,2]
[391713630,1760741445358,-215.0,0.00029417,2]
[391713631,1760741445367,-215.0,0.00029417,2]
[391713632,1760741445377,-215.0,0.00029417,2]
[391713633,1760741445386,-215.0,0.00029417,2]
[391713634,1760741445396,-215.0,0.00029417,2]
[391713635,1760741445405,-215.0,0.00029417,2]
[391713636,1760741445414,-215.0,0.00029417,2]
[391713637,1760741445423,-215.0,0.00029417,2]
[391713638,1760741445432,-215.0,0.00029417,2]
[391713639,1760741445441,-1000.0,0.00029444,5]
[391713640,1760741445450,-707.68608828,0.00029444,5]
[391713641,1760741445459,-1000.0,0.00029458,5]
[391713642,1760741445467,-1000.0,0.00029458,5]
[391713643,1760741445477,-1000.0,0.00029474,5]
[391713644,1760741445486,-166.66,0.00029504,2]
[391713645,1760741445495,-500.0,0.0002961,5]
[391713646,1760741445505,-500.0,0.0002961,5]
[391713647,1760741445514,-1049.48050302,0.00029628,12]
[391713648,1760741445524,-389.11750703,0.00029781,5]
[391713649,1760741445533,-500.0,0.00029873,5]
[391713650,1760741445542,-500.0,0.00029873,5]
[391713651,1760741445551,-500.0,0.00029873,5]
[391713652,1760741445560,-307.1992538,0.00029873,5]
[391713653,1760741445569,-500.0,0.00029873,5]
[391713654,1760741445578,-500.0,0.00029873,5]
[391713655,1760741445587,-500.0,0.00029873,5]
[391713656,1760741445597,-500.0,0.00029873,5]
[391713657,1760741445607,-157.11717055,0.00029873,5]
[391713658,1760741445616,-151.0,0.00029896,7]
[391713659,1760741445625,-337.42810406,0.00029899,17]
[391713660,1760741445635,-77525.7835482,0.000299,2]
[391713661,1760741445644,-827.7,0.000299,7]
[391713662,1760741445655,-1600.0,0.00029932,120]
[391713663,1760741445664,-11973.2166998,0.00029976,2]
[391713664,1760741445674,-200.0,0.00029982,2]
[391713665,1760741445684,-500.0,0.00029992,5]
[391713666,1760741445693,-2731.73356622,0.0003,120]
[391713667,1760741445703,-266.66632289,0.00030022,5]
[391713668,1760741445713,-827.7,0.000301,7]
[391713669,1760741445723,-668.48960045,0.0003013,120]
[391713670,1760741445734,-2440.83,0.00030136,3]
[391713671,1760741445743,-552.94,0.00030137,2]
[391713672,1760741445752,-1001.34475597,0.00030158,5]
[391713673,1760741445762,-500.0,0.00030158,5]
[391713674,1760741445772,-500.0,0.00030199,17]
[391713675,1760741445781,-500.0,0.00030199,2]
[391713676,1760741445790,-289.93061127,0.00030199,2]
[391713677,1760741445800,-500.0,0.00030199,2]
[391713678,1760741445809,-316.0,0.00030199,17]
[391713679,1760741445818,-300.0,0.0003041,2]
[391713680,1760741445828,-1000.0,0.00030421,5]
[391713681,1760741445837,-1000.0,0.00030421,5]
[391713682,1760741445847,-1001.65863554,0.00030421,5]
[391713683,1760741445856,-997.00194634,0.00030421,5]
[391713684,1760741445866,-1000.0,0.00030421,5]
[391713685,1760741445875,-522.91745486,0.00030421,5]
[391713686,1760741445885,-500.0,0.00030421,5]
[391713687,1760741445895,-166.66,0.00030478,2]
[391713688,1760741445904,-1490.91563776,0.00030524,2]
[391713689,1760741445914,-1147.88027341,0.00030592,14]
[391713690,1760741445926,-192816.8511193,0.00030668,2]
[391713691,1760741445935,-238.18790134,0.00030691,3]
[391713692,1760741445945,-161.76830817,0.00030791,2]
[391713693,1760741445954,-1000.0,0.00030968,5]
[391713694,1760741445964,-1000.0,0.00030968,5]
[391713695,1760741445974,-1000.0,0.00030968,5]
[391713696,1760741445984,-6213.37,0.00031,30]
[391713697,1760741445993,-164.0,0.00031,2]
[391713698,1760741446004,-151.0,0.00031,120]
[391713699,1760741446014,-153.0,0.00031,120]
[391713700,1760741446024,-5043.99668962,0.00031056,3]
[391713702,1760741446033,-259.53348965,0.00031156,15]
[391713704,1760741446043,-150.0,0.00031348,120]
[391713705,1760741446052,-238.18790132,0.00031356,4]
[391713707,1760741446062,-725.01476384,0.000314,30]
[391713709,1760741446071,-19314.35490127,0.0003143,4]
[391713711,1760741446081,-166.66,0.00031451,2]
[391713713,1760741446091,-1246.52663291,0.00031556,16]
[391713716,1760741446100,-483.08,0.00031577,2]
[391713717,1760741446110,-1000.0,0.00031683,2]
[391713719,1760741446119,-151.0,0.000318,120]
[391713721,1760741446129,-49351.14594569,0.0003183,2]
[391713722,1760741446138,-5061.79264072,0.00031922,2]
[391713723,1760741446149,-5000.0,0.00031922,2]
[391713724,1760741446161,-5000.0,0.00031922,2]
[391713726,1760741446170,-5000.0,0.00031922,2]
[391713727,1760741446180,-5000.0,0.00031922,2]
[391713728,1760741446189,-218.24295797,0.00031983,120]
[391713729,1760741446198,-2500.00000005,0.00032,30]
[391713730,1760741446208,-500.00000001,0.00032,30]
[391713731,1760741446217,-3204.59563733,0.00032,120]
[391713732,1760741446226,-158.55276527,0.00032,30]
[391713733,1760741446235,-5745.93451095,0.00032,5]
[391713734,1760741446244,-195.0,0.00032,30]
[391713735,1760741446366,-194.0,0.00032,30]
[391713736,1760741446399,-596.550923,0.00032,8]
[391713737,1760741446408,-238.18790132,0.0003202,5]
[391713738,1760741446418,-15725.9848386,0.00032044,2]
[391713739,1760741446427,-9411.25565954,0.00032044,2]
[391713740,1760741446437,-220.66140726,0.00032046,2]
[391713741,1760741446446,-522.26,0.00032054,17]
[391713742,1760741446454,-300.0,0.00032056,30]
[391713743,1760741446463,-8234.41685644,0.00032056,5]
[391713744,1760741446472,-6876.26816062,0.00032056,2]
[391713745,1760741446482,-156.98996217,0.00032056,2]
[391713746,1760741446492,-200782.91526931,0.00032056,2]
[391713747,1760741446501,-504.87836015,0.00032056,2]
[391713748,1760741446511,-1000.0,0.00032073,2]
[391713749,1760741446521,-151.0,0.00032073,7]
[391713750,1760741446531,-15725.9848386,0.00032077,2]
[391713751,1760741446540,-240.64,0.000321,30]
[391713752,1760741446550,-199.10964775,0.000321,30]
[391713753,1760741446559,-9411.25565954,0.0003211,2]
[391713754,1760741446569,-200.0,0.0003212,2]
[391713755,1760741446578,-180.0,0.0003212,30]
[391713756,1760741446587,-180.0,0.0003212,30]
[391713757,1760741446596,-180.0,0.0003212,30]
[391713758,1760741446606,-245.26442753,0.0003212,30]
[391713759,1760741446615,-15725.9848386,0.00032125,2]
[391713760,1760741446624,-9411.25565954,0.00032125,2]
[391713761,1760741446633,-1234.0,0.00032135,7]
[391713762,1760741446643,-1234.0,0.00032135,7]
[391713763,1760741446652,-1234.0,0.00032135,7]
[391713764,1760741446661,-1234.0,0.00032135,7]
[391713765,1760741446671,-1234.0,0.00032135,7]
[391713766,1760741446680,-200.0,0.0003215,2]
[391713767,1760741446690,-1160.24,0.0003215,30]
[391713768,1760741446699,-200.0,0.0003215,2]
[391713769,1760741446709,-200.0,0.0003215,120]
[391713770,1760741446718,-3936.10656,0.0003215,2]
[391713771,1760741446727,-200.0,0.0003215,2]
[391713772,1760741446737,-151.0,0.0003215,7]
[391713773,1760741446746,-151.0,0.0003215,7]
[391713774,1760741446755,-151.0,0.0003215,7]
[391713775,1760741446765,-877.37453512,0.000323,2]
[391713776,1760741446774,-1490.91563776,0.00032412,2]
[391713777,1760741446783,-166.66,0.00032425,2]
[391713778,1760741446793,-200.0,0.00032441,2]
[391713779,1760741446803,-200.0,0.00032471,2]
[391713780,1760741446813,-200.0,0.00032471,2]
[391713781,1760741446823,-200.0,0.00032471,2]
[391713782,1760741446832,-151.0,0.000325,120]
[391713783,1760741446842,-1345.40112289,0.0003252,18]
[391713784,1760741446851,-285.83,0.00032526,30]
[391713785,1760741446860,-153.0,0.000326,120]
[391713786,1760741446870,-200.0,0.00032766,2]
[391713787,1760741446879,-223.15078936,0.00032777,2]
[391713788,1760741446888,-200.0,0.00032796,2]
[391713789,1760741446897,-200.0,0.00032796,2]
[391713790,1760741446907,-200.0,0.00032796,2]
[391713791,1760741446916,-4742.17023011,0.000328,2]
[391713792,1760741446930,-9411.25565954,0.00032856,2]
[391713793,1760741446940,-15725.9848386,0.00032866,2]
[391713794,1760741446950,-3661.245,0.00032876,4]
[391713795,1760741446959,-552.94,0.00032877,2]
[391713796,1760741446969,-263.6253094,0.00032877,2]
[391713797,1760741446978,-1600.0,0.00032925,120]
[391713798,1760741446988,-9411.25565954,0.0003299,2]
[391713799,1760741446997,-1509.25903709,0.00033,2]
[391713800,1760741447007,-1530.45005632,0.00033,2]
[391713801,1760741447017,-150.81024776,0.00033,2]
[391713802,1760741447027,-526.370776,0.00033,8]
[391713803,1760741447036,-9411.25565954,0.00033071,2]
[391713804,1760741447046,-15725.9848386,0.00033081,2]
[391713805,1760741447055,-200.0,0.00033093,2]
[391713806,1760741447064,-11973.2166998,0.00033101,2]
[391713807,1760741447074,-200.0,0.00033124,2]
[391713808,1760741447084,-200.0,0.00033124,2]
[391713809,1760741447094,-200.0,0.00033124,2]
[391713810,1760741447103,-381.21,0.00033165,2]
[391713811,1760741447112,-151.0,0.000333,120]
[391713812,1760741447121,-259.53348965,0.00033333,15]
[391713813,1760741447131,-166.66,0.00033399,2]
[391713814,1760741447142,-200.0,0.00033424,2]
[391713815,1760741447152,-200.0,0.00033455,2]
[391713816,1760741447161,-200.0,0.00033455,2]
[391713817,1760741447170,-200.0,0.00033455,2]
[391713818,1760741447180,-1444.48789216,0.00033484,20]
[391713819,1760741447189,-1189.84483521,0.000335,2]
[391713820,1760741447199,-827.7,0.000339,7]
[391713821,1760741447208,-9411.25565954,0.0003396,2]
[391713822,1760741447218,-15725.9848386,0.0003397,2]
[391713823,1760741447228,-9411.25565954,0.0003397,2]
[391713824,1760741447237,-15725.9848386,0.0003398,2]
[391713825,1760741447247,-9411.25565954,0.0003398,2]
[391713826,1760741447256,-9411.25565954,0.00033983,2]
[391713827,1760741447265,-1239.43,0.00033989,120]
[391713828,1760741447275,-15725.9848386,0.0003399,2]
[391713829,1760741447284,-9411.25565954,0.0003399,2]
[391713830,1760741447293,-17312.12,0.00033993,2]
[391713831,1760741447303,-976.96,0.00034,2]
[391713832,1760741447312,-19999.999999,0.00034,30]
[391713833,1760741447321,-450.0,0.00034038,7]
[391713834,1760741447331,-450.0,0.00034038,7]
[391713835,1760741447339,-151.0,0.000341,120]
[391713836,1760741447349,-9411.25565954,0.000341,2]
[391713837,1760741447358,-15725.9848386,0.0003411,2]
[391713838,1760741447368,-9411.25565954,0.0003411,2]
[391713839,1760741447377,-15725.9848386,0.0003412,2]
[391713840,1760741447386,-18822.5113191,0.0003412,2]
[391713841,1760741447396,-35273.81620056,0.0003413,10]
[391713842,1760741447405,-3936.10656,0.0003415,2]
[391713843,1760741447415,-322.05,0.00034152,2]
[391713844,1760741447424,-15725.9848386,0.00034189,2]
[391713845,1760741447434,-9411.25565954,0.00034189,2]
[391713846,1760741447443,-10000.0,0.00034199,2]
[391713847,1760741447452,-1230.06,0.000342,2]
[391713848,1760741447462,-1490.91563776,0.00034299,2]
[391713849,1760741447471,-153.0,0.000343,120]
[391713850,1760741447481,-322.05,0.00034315,2]
[391713851,1760741447490,-166.66,0.00034373,2]
[391713852,1760741447499,-295.0343192,0.000344,6]
[391713853,1760741447509,-1543.7731784,0.00034449,22]
[391713854,1760741447518,-322.04806392,0.00034477,2]
[391713855,1760741447527,-150924.07861697,0.00034486,2]
[391713856,1760741447708,-41892.77250233,0.00034486,2]
[391713857,1760741447719,-1699.80830621,0.0003449,2]
[391713858,1760741447729,-433.0,0.0003449,10]
[391713859,1760741447739,-1000.0,0.00034563,2]
[391713860,1760741447749,-161.76830817,0.00034639,2]
[391713861,1760741447759,-151.0,0.000348,120]
[391713862,1760741447768,-9411.25565954,0.0003484,2]
[391713863,1760741447778,-1444.0,0.00034849,120]
[391713864,1760741447788,-2943.43154734,0.0003485,60]
[391713865,1760741447797,-151.0,0.00034878,14]
[391713866,1760741447806,-15725.9848386,0.0003488,2]
[391713867,1760741447814,-9411.25565954,0.0003489,2]
[391713868,1760741447824,-3737.38423386,0.000349,24]
[391713869,1760741447833,-507.86946841,0.000349,2]
[391713870,1760741447843,-256.12427573,0.000349,120]
[391713871,1760741447852,-2751.0,0.00034911,120]
[391713872,1760741447862,-9411.25565954,0.0003498,2]
[391713873,1760741447872,-15725.9848386,0.0003499,2]
[391713874,1760741447882,-2372.77,0.00035,120]
[391713875,1760741447891,-1553.15,0.00035,120]
[391713876,1760741447901,-1261.09,0.00035,120]
[391713877,1760741447910,-1518.92,0.00035,120]
[391713878,1760741447921,-2381.26,0.00035,120]
[391713879,1760741447934,-400.06217147,0.00035,2]
[391713880,1760741447944,-1215.55064977,0.00035,2]
[391713881,1760741447953,-399.999999,0.00035,30]
[391713882,1760741447963,-2678.24040781,0.00035,60]
[391713883,1760741447974,-1110.77,0.00035,120]
[391713884,1760741447984,-1230.06,0.00035,2]
[391713885,1760741447994,-9411.25565954,0.00035058,2]
[391713886,1760741448006,-410.6,0.00035068,2]
[391713887,1760741448016,-1239.43,0.00035085,120]
[391713888,1760741448026,-223.15078936,0.00035131,2]
[391713889,1760741448035,-9411.25565954,0.00035351,2]
[391713890,1760741448046,-31451.9696772,0.0003536,2]
[391713891,1760741448056,-2383.114638,0.0003537,30]
[391713892,1760741448067,-2383.114638,0.0003537,30]
[391713893,1760741448076,-2383.114638,0.0003537,30]
[391713894,1760741448085,-2383.114638,0.0003537,30]
[391713895,1760741448094,-173.34896,0.0003537,30]
[391713896,1760741448104,-151.0,0.0003537,30]
[391713897,1760741448113,-151.0,0.0003537,30]
[391713898,1760741448123,-151.0,0.0003537,30]
[391713899,1760741448132,-173.34896,0.0003537,30]
[391713900,1760741448142,-151.0,0.0003537,30]
[391713901,1760741448151,-173.34896,0.0003537,30]
[391713902,1760741448161,-151.0,0.0003537,30]
[391713903,1760741448170,-204.576958,0.0003537,30]
[391713904,1760741448179,-173.34896,0.0003537,30]
[391713905,1760741448188,-151.0,0.0003537,30]
[391713906,1760741448198,-151.0,0.0003537,30]
[391713907,1760741448208,-252.392814,0.0003537,30]
[391713908,1760741448217,-151.0,0.0003537,30]
[391713909,1760741448226,-204.576958,0.0003537,30]
[391713910,1760741448236,-252.392814,0.0003537,30]
[391713911,1760741448245,-151.0,0.0003537,30]
[391713912,1760741448254,-151.0,0.0003537,30]
[391713913,1760741448263,-204.576958,0.0003537,30]
[391713914,1760741448273,-252.392814,0.0003537,30]
[391713915,1760741448283,-151.0,0.0003537,30]
[391713916,1760741448292,-151.0,0.0003537,30]
[391713917,1760741448302,-204.576958,0.0003537,30]
[391713918,1760741448311,-252.392814,0.0003537,30]
[391713919,1760741448320,-151.0,0.0003537,30]
[391713920,1760741448329,-151.0,0.0003537,30]
[391713921,1760741448338,-151.0,0.0003537,30]
[391713922,1760741448347,-151.0,0.0003537,30]
[391713923,1760741448357,-151.0,0.0003537,30]
[391713924,1760741448366,-56467.5339572,0.0003537,2]
[391713925,1760741448375,-150.0,0.0003538,20]
[391713926,1760741448384,-151.0,0.0003538,30]
[391713927,1760741448394,-151.0,0.0003538,30]
[391713928,1760741448403,-151.0,0.0003538,30]
[391713929,1760741448412,-151.0,0.0003538,30]
[391713930,1760741448421,-151.0,0.0003538,30]
[391713931,1760741448430,-636.241913,0.0003538,30]
[391713932,1760741448440,-151.0,0.0003538,30]
[391713933,1760741448450,-636.241913,0.0003538,30]
[391713934,1760741448459,-151.0,0.0003538,30]
[391713935,1760741448468,-636.241913,0.0003538,30]
[391713936,1760741448478,-293.314821,0.0003538,30]
[391713937,1760741448487,-636.241913,0.0003538,30]
[391713938,1760741448496,-238.609591,0.0003538,30]
[391713939,1760741448505,-5410.379724,0.0003538,30]
[391713940,1760741448514,-151.0,0.0003538,30]
[391713941,1760741448523,-238.609591,0.0003538,30]
[391713942,1760741448532,-151.0,0.0003538,30]
[391713943,1760741448541,-686.381506,0.0003538,30]
[391713944,1760741448550,-5410.379724,0.0003538,30]
[391713945,1760741448559,-238.609591,0.0003538,30]
[391713946,1760741448568,-686.381506,0.0003538,30]
[391713947,1760741448578,-151.0,0.0003538,30]
[391713948,1760741448587,-151.0,0.0003538,30]
[391713949,1760741448596,-5410.379724,0.0003538,30]
[391713950,1760741448606,-151.0,0.0003538,30]
[391713951,1760741448615,-238.609591,0.0003538,30]
[391713952,1760741448625,-151.0,0.0003538,30]
[391713953,1760741448634,-686.381506,0.0003538,30]
[391713954,1760741448644,-151.0,0.0003538,30]
[391713955,1760741448691,-5410.379724,0.0003538,30]
[391713956,1760741448700,-151.0,0.0003538,30]
[391713957,1760741448709,-686.381506,0.0003538,30]
[391713958,1760741448718,-151.0,0.0003538,30]
[391713959,1760741448727,-151.0,0.0003538,30]
[391713960,1760741448736,-151.0,0.0003538,30]
[391713961,1760741448745,-151.0,0.0003538,30]
[391713962,1760741448754,-151.0,0.0003538,30]
[391713963,1760741448763,-852.458107,0.0003538,30]
[391713964,1760741448773,-299.96884,0.0003538,30]
[391713965,1760741448782,-281.064987,0.0003538,30]
[391713966,1760741448791,-852.458107,0.0003538,30]
[391713967,1760741448800,-151.0,0.0003538,30]
[391713968,1760741448809,-281.064987,0.0003538,30]
[391713969,1760741448818,-151.0,0.0003538,30]
[391713970,1760741448827,-389.820547,0.0003538,30]
[391713971,1760741448836,-151.0,0.0003538,30]
[391713972,1760741448845,-852.458107,0.0003538,30]
[391713973,1760741448855,-389.820547,0.0003538,30]
[391713974,1760741448864,-151.0,0.0003538,30]
[391713975,1760741448873,-151.0,0.0003538,30]
[391713976,1760741448883,-281.064987,0.0003538,30]
[391713977,1760741448892,-852.458107,0.0003538,30]
[391713978,1760741448902,-389.820547,0.0003538,30]
[391713979,1760741448912,-151.0,0.0003538,30]
[391713980,1760741448921,-151.0,0.0003538,30]
[391713981,1760741448933,-281.064987,0.0003538,30]
[391713982,1760741448942,-151.0,0.0003538,30]
[391713983,1760741448952,-389.820547,0.0003538,30]
[391713984,1760741448961,-151.0,0.0003538,30]
[391713985,1760741448971,-151.0,0.0003538,30]
[391713986,1760741448980,-151.0,0.0003538,30]
[391713987,1760741448989,-151.0,0.0003538,30]
[391713988,1760741448999,-151.0,0.0003538,30]
[391713989,1760741449008,-151.0,0.0003538,30]
[391713990,1760741449017,-151.351751,0.0003538,30]
[391713991,1760741449026,-151.0,0.0003538,30]
[391713992,1760741449036,-151.0,0.0003538,30]
[391713993,1760741449045,-151.0,0.0003538,20]